bitfinex-derivatives/quotes_ETHF0:USTF0_20260123
["timestamp","ask_amount","ask_price","bid_price","bid_amount"]
[1769157510697,0.171,2927.9,2925.7,2.65681442]
[1769157510894,4.74715336,2928.9,2926.0,0.17111]
[1769157510895,0.17096,2928.6,2926.0,0.17111]
[1769157511094,0.98558815,2928.5,2926.1,2.48569442]
[1769157511301,0.17096,2928.6,2926.6,2.48569442]
[1769157511495,0.17096,2928.6,2926.8,2.48569442]
[1769157511798,2.67170305,2929.6,2926.8,2.48569442]
[1769157512000,0.17092,2929.3,2926.8,2.48569442]
[1769157512195,0.98527025,2929.2,2926.8,2.48569442]
[1769157513299,0.98527025,2929.1,2927.0,2.5237723]
[1769157513499,2.40694225,2929.6,2927.0,2.5237723]
[1769157513694,0.98317677,2929.5,2927.2,2.5237723]
[1769157514005,0.98317677,2929.4,2927.2,2.5237723]
[1769157514301,0.98317677,2929.3,2927.2,2.5237723]
[1769157514494,0.17094,2928.9,2927.2,2.5237723]
[1769157514704,0.1709,2929.6,2927.2,2.5237723]
[1769157514903,0.9825091,2929.5,2927.2,2.5237723]
[1769157515098,0.1709,2929.6,2927.2,2.5237723]
[1769157515295,0.1709,2929.6,2927.2,3.8712946]
[1769157515496,0.1709,2929.6,2927.3,2.5237723]
[1769157515697,0.1709,2929.6,2927.3,2.52795054]
[1769157517700,3.421,2930.3,2927.5,2.5237723]
[1769157517913,0.97949105,2930.2,2927.5,2.5237723]
[1769157518104,2.8464198,2930.4,2927.7,2.5237723]
[1769157518105,2.40694225,2930.4,2927.7,2.5237723]
[1769157518403,1.9,2931.0,2927.7,2.5237723]
[1769157518404,2.40694225,2930.3,2927.7,2.5237723]
[1769157518796,2.40694225,2930.1,2927.7,2.5237723]
[1769157519001,2.40694225,2930.1,2927.8,8.6737723]
[1769157519208,2.40694225,2930.1,2927.9,2.5237723]
[1769157519405,2.40694225,2929.9,2927.9,2.5237723]
[1769157520397,0.27138709,2930.4,2927.9,2.5237723]
[1769157520398,2.40694225,2929.7,2927.9,2.5237723]
[1769157520795,0.17093,2929.1,2927.6,3.419]
[1769157520998,2.40694225,2929.1,2927.3,0.00417824]
[1769157521201,0.17096,2928.6,2927.3,0.00417824]
[1769157521407,0.17096,2928.6,2927.3,2.52795054]
[1769157522109,2.40694225,2929.1,2927.3,2.52795054]
[1769157522609,2.57787225,2929.1,2927.3,2.52795054]
[1769157523110,0.17093,2929.1,2927.3,2.52795054]
[1769157523606,0.17088,2929.9,2927.3,2.69898054]
[1769157525107,0.17089,2929.7,2927.3,2.69898054]
[1769157525810,0.1709,2929.6,2927.3,2.69898054]
[1769157526211,0.1709,2929.6,2927.5,2.5237723]
[1769157526604,0.1709,2929.5,2927.5,2.5237723]
[1769157526904,3.419,2930.2,2927.7,2.5237723]
[1769157527105,0.17092,2929.3,2927.8,2.734]
[1769157527703,0.17092,2929.2,2927.8,5.2577723]
[1769157528505,0.17092,2929.2,2927.9,3.419]
[1769157528811,0.17092,2929.2,2927.8,2.5237723]
[1769157529014,0.17092,2929.2,2927.9,3.419]
[1769157529615,0.17094,2928.9,2927.6,3.419]
[1769157530311,0.17094,2928.9,2928.0,0.00512733]
[1769157533612,10.259,2929.8,2928.0,2.52889963]
[1769157533813,0.1709,2929.6,2928.0,2.52889963]
[1769157535521,0.17091,2929.5,2928.0,2.52889963]
[1769157535812,0.17091,2929.4,2928.1,3.419]
[1769157536907,0.17091,2929.4,2928.0,2.52889963]
[1769157539318,0.4234315,2929.3,2928.0,2.52889963]
[1769157539518,0.4234315,2929.2,2928.0,2.52889963]
[1769157539714,0.17091,2929.4,2928.0,2.52889963]
[1769157539914,0.42342634,2929.3,2928.0,2.52889963]
[1769157540110,0.42342634,2929.2,2928.0,2.52889963]
[1769157540312,0.42342634,2929.1,2928.0,2.52889963]
[1769157540612,0.17091,2929.4,2928.0,2.52889963]
[1769157540811,1.40953751,2929.3,2928.0,2.52889963]
[1769157541007,0.42401592,2929.2,2928.0,2.52889963]
[1769157541219,0.42401592,2929.1,2928.0,2.52889963]
[1769157541420,0.17091,2929.4,2928.0,2.52889963]
[1769157541613,1.41008368,2929.3,2928.0,2.52889963]
[1769157541814,0.42418197,2929.2,2928.0,2.52889963]
[1769157542016,0.42418197,2929.1,2928.0,2.52889963]
[1769157542217,0.17091,2929.4,2928.0,2.52889963]
[1769157542516,1.41006556,2929.3,2928.1,8.81867036]
[1769157542816,0.17088,2930.0,2928.2,2.66367036]
[1769157543010,0.98602871,2929.9,2928.2,2.66367036]
[1769157543215,1.15691871,2929.8,2928.2,2.66367036]
[1769157543512,0.98602871,2929.7,2928.4,2.66367036]
[1769157543713,0.17089,2929.8,2928.4,2.66367036]
[1769157544215,5.318,2930.6,2928.4,2.66367036]
[1769157544216,0.17089,2929.7,2928.4,2.66367036]
[1769157547016,0.17086,2930.3,2928.4,2.66367036]
[1769157547216,0.98545608,2930.2,2928.4,2.66367036]
[1769157547416,0.98545608,2930.1,2928.4,2.66367036]
[1769157547619,0.98545608,2930.0,2928.4,2.66367036]
[1769157547921,0.98545608,2929.9,2928.4,2.66367036]
[1769157548114,0.17086,2930.3,2928.4,2.66367036]
[1769157548319,0.98523203,2930.2,2928.4,2.66367036]
[1769157548524,0.17086,2930.3,2928.4,2.66367036]
[1769157548823,0.98529606,2930.2,2928.6,2.58850332]
[1769157549025,0.17086,2930.3,2928.6,2.58850332]
[1769157551023,0.17086,2930.3,2928.6,4.37450332]
[1769157551324,0.17086,2930.3,2928.7,2.58850332]
[1769157551523,0.98508375,2930.2,2928.7,2.58850332]
[1769157551823,0.17086,2930.3,2928.7,2.58850332]
[1769157553425,1.15592832,2930.2,2928.8,6.175]
[1769157553625,0.17086,2930.2,2928.8,8.76350332]
[1769157553825,0.98507841,2930.1,2928.8,8.76350332]
[1769157554018,0.17086,2930.2,2928.8,8.76350332]
[1769157554321,0.13866,2930.2,2928.9,2.58850332]
[1769157555620,0.40572656,2930.1,2928.9,2.58850332]
[1769157555818,0.13866,2930.2,2928.9,2.58850332]
[1769157556020,0.40570515,2930.1,2928.9,2.58850332]
[1769157556330,0.13866,2930.2,2928.9,2.58850332]
[1769157556626,0.40561226,2930.1,2928.9,2.58850332]
[1769157556827,0.13866,2930.2,2928.9,2.58850332]
[1769157559925,0.17083,2930.8,2928.9,2.58850332]
[1769157560120,1.38917813,2930.7,2928.9,2.58850332]
[1769157560316,1.38917813,2930.6,2928.9,2.58850332]
[1769157560515,1.38917813,2930.5,2928.9,2.58850332]
[1769157560724,1.38917813,2930.4,2928.9,2.58850332]
[1769157560925,0.40553462,2930.3,2928.9,2.58850332]
[1769157561120,0.17083,2930.7,2928.9,2.58850332]
[1769157561314,1.38977884,2930.6,2928.9,2.58850332]
[1769157561525,1.38977884,2930.5,2928.9,2.58850332]
[1769157561727,0.4057115,2930.4,2928.9,2.58850332]
[1769157561927,0.17083,2930.7,2928.9,2.58850332]
[1769157562125,1.38973016,2930.6,2928.9,2.58850332]
[1769157562325,1.38984858,2930.5,2928.9,2.58850332]
[1769157562525,0.40581582,2930.4,2928.9,2.58850332]
[1769157562824,0.17084,2930.6,2928.9,2.58850332]
[1769157563021,1.39014016,2930.5,2928.9,2.58850332]
[1769157563222,0.40581743,2930.4,2928.9,2.58850332]
[1769157563422,0.17084,2930.6,2928.9,2.58850332]
[1769157563624,1.39067237,2930.5,2928.9,2.58850332]
[1769157563823,0.40597316,2930.4,2928.9,2.58850332]
[1769157564027,0.17084,2930.6,2928.9,2.58850332]
[1769157564328,1.39072741,2930.5,2928.9,2.58850332]
[1769157564529,0.17084,2930.6,2928.8,7.961]
[1769157564530,0.40598935,2930.4,2929.1,2.58850332]
[1769157564721,0.17084,2930.6,2929.1,2.58850332]
[1769157564917,1.39071185,2930.5,2929.1,2.58850332]
[1769157565116,0.40598537,2930.4,2929.1,2.58850332]
[1769157565327,0.17084,2930.6,2929.1,2.58850332]
[1769157565524,0.98477922,2930.5,2929.1,2.58850332]
[1769157565720,0.40600788,2930.4,2929.2,1.786]
[1769157565924,0.17084,2930.6,2929.3,2.65154699]
[1769157566131,1.39078707,2930.5,2929.3,2.65154699]
[1769157566326,0.17086,2930.3,2929.2,1.786]
[1769157566529,0.17086,2930.3,2929.4,2.765]
[1769157566826,0.17086,2930.3,2929.4,2.76903882]
[1769157567323,0.17086,2930.3,2929.4,0.00403882]
[1769157568030,0.17082,2930.9,2929.4,2.65558581]
[1769157568227,1.39179077,2930.8,2929.4,2.65558581]
[1769157568432,1.39179077,2930.7,2929.4,2.65558581]
[1769157568635,0.4063014,2930.6,2929.4,2.65558581]
[1769157568823,0.4063014,2930.5,2929.4,2.65558581]
[1769157569023,0.17082,2930.9,2929.4,2.65558581]
[1769157569330,1.39219598,2930.8,2929.4,2.65558581]
[1769157569528,1.39219598,2930.7,2929.4,2.65558581]
[1769157569731,0.40642269,2930.6,2929.4,2.65558581]
[1769157569931,0.40642269,2930.5,2929.4,2.65558581]
[1769157570233,0.17082,2930.9,2929.4,2.65558581]
[1769157570434,0.40636687,2930.8,2929.4,2.65558581]
[1769157570632,0.40636687,2930.7,2929.4,2.65558581]
[1769157570826,0.17082,2930.9,2929.4,2.65558581]
[1769157571127,1.39247035,2930.8,2929.4,2.65558581]
[1769157571335,0.57722854,2930.7,2929.4,5.42758581]
[1769157571526,0.40638854,2930.6,2929.4,5.42758581]
[1769157571829,0.17084,2930.7,2929.4,5.42758581]
[1769157571830,0.40638854,2930.5,2929.4,5.42758581]
[1769157572030,0.17084,2930.7,2929.4,5.42758581]
[1769157572232,0.4045772,2930.6,2929.4,5.42758581]
[1769157572432,0.4045772,2930.5,2929.4,5.42758581]
[1769157572634,0.17084,2930.7,2929.4,5.42758581]
[1769157572934,0.40475313,2930.6,2929.4,5.42758581]
[1769157573129,0.40475313,2930.5,2929.4,5.42758581]
[1769157573434,0.17084,2930.7,2929.4,5.42758581]
[1769157573732,0.4048217,2930.6,2929.4,5.42758581]
[1769157573934,0.4048217,2930.5,2929.5,2.775]
[1769157574229,0.40486334,2930.4,2929.5,2.775]
[1769157574430,0.17084,2930.7,2929.5,2.775]
[1769157574631,1.39157425,2930.6,2929.5,2.775]
[1769157574823,0.40486416,2930.5,2929.5,2.775]
[1769157576028,0.40486416,2930.5,2929.4,2.65558581]
[1769157576229,0.40486416,2930.5,2929.5,2.778]
[1769157577025,0.17084,2930.6,2929.5,2.778]
[1769157577233,1.39257442,2930.5,2929.5,2.778]
[1769157577535,0.17084,2930.6,2929.5,2.778]
[1769157577536,0.40518626,2930.4,2929.5,2.778]
[1769157577732,0.40518626,2930.3,2929.5,2.778]
[1769157577933,0.17084,2930.6,2929.5,2.778]
[1769157578137,1.39287064,2930.5,2929.5,2.778]
[1769157578332,1.3930263,2930.4,2929.4,0.00403882]
[1769157578538,0.40524287,2930.3,2929.5,2.782]
[1769157578738,0.40524287,2930.2,2929.4,0.00403882]
[1769157579038,0.17086,2930.3,2929.4,2.78703882]
[1769157579238,0.40530729,2930.2,2929.4,2.78703882]
[1769157579438,0.17086,2930.3,2929.4,2.78703882]
[1769157580034,0.4053227,2930.2,2929.4,2.78703882]
[1769157580228,0.17086,2930.3,2929.4,2.78703882]
[1769157581541,0.40538513,2930.2,2929.5,2.64572443]
[1769157581743,0.17082,2930.9,2929.5,2.64572443]
[1769157582037,0.98806771,2930.8,2929.5,2.64572443]
[1769157582238,0.98806771,2930.7,2929.5,2.64572443]
[1769157582537,0.98806771,2930.6,2929.5,2.64572443]
[1769157582838,0.17082,2930.9,2929.5,2.64572443]
[1769157583035,0.98820317,2930.8,2929.5,2.64572443]
[1769157583235,0.17082,2930.9,2929.5,2.64572443]
[1769157583441,1.39350001,2930.8,2929.5,2.64572443]
[1769157583640,0.40542038,2930.7,2929.5,2.64572443]
[1769157583837,0.40542038,2930.6,2929.5,2.64572443]
[1769157584037,0.17082,2930.9,2929.5,2.64572443]
[1769157584243,1.55301033,2930.8,2929.5,2.64572443]
[1769157584444,0.39409412,2930.7,2929.5,2.64572443]
[1769157584742,0.17083,2930.8,2929.5,2.64572443]
[1769157584942,0.3915866,2930.7,2929.5,2.64572443]
[1769157585140,0.17079,2931.4,2930.2,2.64572443]
[1769157585340,0.17081,2931.1,2930.2,2.64572443]
[1769157585539,0.27734087,2931.6,2930.2,2.794]
[1769157585540,0.17083,2930.9,2930.2,2.794]
[1769157586342,0.17083,2930.9,2930.0,2.795]
[1769157586545,0.39137784,2930.8,2930.0,2.795]
[1769157586744,0.17083,2930.9,2930.0,2.795]
[1769157586946,0.39136128,2930.8,2930.0,2.795]
[1769157587250,0.39132723,2930.7,2930.0,2.795]
[1769157587546,0.17083,2930.9,2930.0,2.795]
[1769157587839,1.37899715,2930.8,2929.7,2.64572443]
[1769157588042,0.39135396,2930.7,2929.7,5.44372443]
[1769157588244,0.17083,2930.9,2929.7,5.44372443]
[1769157588444,1.37906894,2930.8,2929.7,5.44372443]
[1769157588642,0.39137675,2930.7,2929.7,5.44472443]
[1769157588842,0.17083,2930.9,2929.7,5.44472443]
[1769157589041,1.37716667,2930.8,2929.7,5.44472443]
[1769157589245,1.54801946,2930.7,2929.4,2.80503882]
[1769157589444,1.37713914,2930.6,2929.4,2.80503882]
[1769157589648,0.39137691,2930.5,2929.4,2.80503882]
[1769157589843,0.17083,2930.7,2929.4,0.00403882]
[1769157590043,0.39139388,2930.6,2929.5,2.802]
[1769157590346,0.39139388,2930.5,2929.5,2.802]
[1769157590545,0.17083,2930.7,2929.5,5.44772443]
[1769157590847,0.39141599,2930.6,2929.6,2.803]
[1769157591048,0.17083,2930.7,2929.6,2.803]
[1769157591244,0.3914164,2930.6,2929.6,2.803]
[1769157591443,0.17083,2930.7,2929.6,5.44872443]
[1769157591644,0.39144516,2930.6,2929.7,2.64572443]
[1769157591846,0.17083,2930.7,2929.7,2.64572443]
[1769157592050,0.39145183,2930.6,2929.7,2.64572443]
[1769157592250,0.17083,2930.7,2929.7,2.64572443]
[1769157592450,0.39147114,2930.6,2929.7,2.64572443]
[1769157592650,0.17083,2930.7,2929.7,2.64572443]
[1769157592846,0.39147023,2930.6,2929.7,2.64572443]
[1769157593046,0.17083,2930.7,2929.7,2.64572443]
[1769157593449,0.1708,2931.3,2929.7,2.64572443]
[1769157593650,1.37770682,2931.2,2930.0,2.64572443]
[1769157593851,0.3915514,2931.1,2930.0,2.64572443]
[1769157594152,0.3915514,2931.0,2930.0,2.64572443]
[1769157594350,0.1708,2931.3,2930.0,2.64572443]
[1769157594550,1.37467434,2931.2,2930.0,2.64572443]
[1769157594747,0.38866732,2931.1,2930.0,2.64572443]
[1769157594944,0.1708,2931.3,2930.0,2.64572443]
[1769157595155,1.37456698,2931.2,2930.0,2.64572443]
[1769157595347,0.38863681,2931.1,2930.0,2.64572443]
[1769157595652,0.1708,2931.3,2930.0,2.64572443]
[1769157595855,1.3742751,2931.2,2930.0,2.64572443]
[1769157596054,0.38856218,2931.1,2930.0,2.64572443]
[1769157596246,0.1708,2931.3,2930.0,2.64572443]
[1769157596452,0.38851047,2931.2,2930.0,2.64572443]
[1769157596648,0.38850977,2931.1,2930.1,6.228]
[1769157596951,0.1708,2931.2,2930.1,8.87372443]
[1769157597253,0.38846563,2931.1,2930.2,2.64572443]
[1769157597453,0.1708,2931.2,2930.2,2.64572443]
[1769157597654,0.38844809,2931.1,2930.2,2.64572443]
[1769157597951,0.1708,2931.2,2930.2,2.64572443]
[1769157598146,0.1708,2931.2,2930.3,2.815]
[1769157598951,0.1708,2931.2,2930.3,5.46072443]
[1769157599152,0.1708,2931.2,2930.4,2.64572443]
[1769157599758,0.55915408,2931.1,2930.0,2.64572443]
[1769157600051,13.06167241,2932.2,2930.7,2.64572443]
[1769157600258,0.17078,2931.7,2930.5,1.898]
[1769157600549,0.98532213,2931.6,2930.5,1.898]
[1769157600752,2.80267241,2932.1,2929.7,2.64572443]
[1769157600753,0.17081,2931.1,2929.7,2.64572443]
[1769157600957,0.17081,2931.1,2929.8,2.64572443]
[1769157601145,0.17078,2931.7,2929.8,2.64572443]
[1769157601350,0.9847222,2931.6,2929.8,2.64572443]
[1769157601551,0.9847222,2931.5,2929.8,2.64572443]
[1769157601857,0.9847222,2931.4,2929.8,2.64572443]
[1769157602054,0.9847222,2931.3,2929.8,2.64572443]
[1769157602255,0.9847222,2931.2,2929.8,2.64572443]
[1769157602557,0.9847222,2931.1,2930.0,2.6299858]
[1769157602760,0.17079,2931.4,2930.0,2.6299858]
[1769157602969,0.98447121,2931.3,2930.0,2.6299858]
[1769157603150,0.98447121,2931.2,2930.0,2.6299858]
[1769157603454,0.98447121,2931.1,2930.0,2.6299858]
[1769157603649,0.17079,2931.4,2930.0,2.6299858]
[1769157603849,0.98443437,2931.3,2930.0,2.6299858]
[1769157604050,0.98443437,2931.2,2930.0,2.6299858]
[1769157604254,0.17079,2931.4,2930.0,2.6299858]
[1769157604559,0.98439051,2931.3,2930.0,2.6299858]
[1769157604759,2.39307596,2932.0,2930.0,2.6299858]
[1769157604955,2.84771054,2932.1,2930.2,2.6299858]
[1769157605154,0.17079,2931.4,2930.2,2.6299858]
[1769157605355,0.17079,2931.4,2930.4,2.93473993]
[1769157605560,3.01846054,2932.1,2930.4,2.93473993]
[1769157605764,3.01846054,2932.1,2930.4,4.72073993]
[1769157606059,0.17076,2932.0,2930.4,4.72073993]
[1769157606261,2.84771054,2932.1,2930.4,4.72073993]
[1769157606262,0.17076,2931.9,2930.4,4.72073993]
[1769157606861,0.17076,2931.9,2930.5,2.93473993]
[1769157607464,0.17077,2931.8,2930.5,2.93473993]
[1769157608159,0.17077,2931.8,2930.6,2.832]
[1769157608461,0.17077,2931.8,2930.7,2.93473993]
[1769157609559,3.21286306,2932.5,2930.7,2.93473993]
[1769157609766,0.17074,2932.3,2930.7,2.93473993]
[1769157610157,0.17076,2932.0,2930.8,6.251]
[1769157610552,0.17077,2931.8,2930.3,4.72073993]
[1769157610764,0.17077,2931.8,2930.4,6.253]
[1769157610962,0.17077,2931.8,2930.4,2.837]
[1769157611861,0.38220864,2931.7,2930.4,2.837]
[1769157612163,0.17078,2931.6,2930.4,2.837]
[1769157612758,0.17078,2931.6,2930.5,2.93473993]
[1769157614570,0.17078,2931.6,2930.6,2.842]
[1769157615461,0.17078,2931.6,2930.5,2.93473993]
[1769157615672,0.17079,2931.5,2929.9,2.7138518]
[1769157615967,0.17079,2931.5,2930.1,2.7138518]
[1769157617674,0.17079,2931.5,2930.3,2.7138518]
[1769157621373,0.17079,2931.5,2930.3,4.4998518]
[1769157621570,0.17079,2931.5,2930.4,2.7138518]
[1769157623770,4.69494387,2932.4,2930.4,2.7138518]
[1769157623973,4.25897062,2933.3,2929.4,10.63166979]
[1769157623974,2.96726831,2934.8,2932.3,1.34368376]
[1769157624172,2.96726831,2934.7,2932.9,1.34368376]
[1769157624372,2.96726831,2934.7,2933.0,5.314]
[1769157624568,2.96726831,2934.7,2933.1,2.868]
[1769157624769,2.9655514,2934.3,2932.3,1.39242837]
[1769157625071,2.9655514,2934.1,2932.3,0.00434136]
[1769157625477,2.9655514,2934.1,2932.4,5.381]
[1769157625773,2.9655514,2934.1,2932.9,0.00511849]
[1769157627671,2.99636959,2933.9,2932.3,0.00434136]
[1769157627873,2.99381035,2933.5,2932.3,0.00434136]
[1769157630277,2.96571884,2933.3,2932.3,0.00434136]
[1769157630480,3.13640884,2933.3,2931.6,3.415]
[1769157631173,3.13640884,2933.3,2931.3,3.52252922]
[1769157631374,3.13640884,2933.3,2932.2,0.00511849]
[1769157631573,3.14083067,2933.3,2932.2,0.00909625]
[1769157633774,2.94547319,2933.8,2932.2,0.00909625]
[1769157634479,0.17065,2933.9,2932.2,0.48800279]
[1769157634675,0.17061,2934.6,2932.2,0.48800279]
[1769157634877,0.17061,2934.6,2932.8,2.90444319]
[1769157635076,0.17061,2934.6,2933.0,2.90444319]
[1769157635483,0.17061,2934.6,2933.1,3.414]
[1769157636380,0.17061,2934.6,2933.0,6.31844319]
[1769157638175,0.17061,2934.6,2933.0,2.90444319]
[1769157640380,3.09407152,2935.2,2933.0,2.90444319]
[1769157640580,0.17058,2935.1,2933.0,2.90444319]
[1769157640978,3.09408152,2935.1,2933.0,2.90444319]
[1769157642182,2.92350152,2934.9,2933.0,2.90444319]
[1769157642486,2.92350152,2934.9,2932.6,6.31744319]
[1769157642987,2.92350152,2934.8,2932.6,6.31744319]
[1769157643285,0.17062,2934.4,2932.6,6.31744319]
[1769157643483,0.17062,2934.4,2932.7,6.284]
[1769157643884,0.17062,2934.3,2932.7,6.284]
[1769157645280,0.17062,2934.3,2932.7,2.90444319]
[1769157645481,0.17062,2934.3,2932.7,9.18844319]
[1769157646287,0.17062,2934.3,2932.8,2.90444319]
[1769157646680,2.92350152,2934.8,2932.8,2.90444319]
[1769157647085,3.09410152,2934.8,2932.8,2.90444319]
[1769157647884,0.17061,2934.6,2933.0,2.90444319]
[1769157648186,0.17061,2934.5,2933.0,9.19144319]
[1769157648481,0.17062,2934.4,2932.9,16.477]
[1769157648987,0.17063,2934.3,2932.9,16.477]
[1769157650088,0.17063,2934.2,2932.9,16.477]
[1769157650288,0.17064,2934.1,2932.9,13.073]
[1769157652089,2.40899476,2935.2,2933.0,2.90444319]
[1769157652378,0.17061,2934.6,2933.1,6.74444319]
[1769157652581,0.17061,2934.6,2933.2,3.84]
[1769157652790,0.17061,2934.5,2933.2,3.84]
[1769157653690,0.17062,2934.3,2933.2,3.84]
[1769157654380,0.17062,2934.3,2933.2,6.738]
[1769157656599,0.17062,2934.3,2933.3,3.84]
[1769157657391,0.17062,2934.3,2933.3,6.74444319]
[1769157659494,0.17062,2934.3,2933.4,2.914]
[1769157660700,2.92350152,2935.1,2933.5,2.90444319]
[1769157660898,1.29765302,2935.0,2933.5,2.90444319]
[1769157661101,0.1706,2934.8,2933.5,2.90444319]
[1769157662099,0.17061,2934.5,2933.6,2.921]
[1769157662500,0.17061,2934.5,2933.7,3.84]
[1769157662697,0.17061,2934.5,2933.8,3.84]
[1769157663688,1.128876,2934.4,2933.8,3.13871]
[1769157663894,0.958256,2934.3,2933.8,3.13871]
[1769157664199,0.17062,2934.4,2933.8,3.13871]
[1769157664400,0.95919094,2934.3,2933.8,3.13871]
[1769157664599,0.17062,2934.4,2933.8,3.13871]
[1769157664788,1.12982077,2934.3,2933.8,2.34542]
[1769157664993,1.30197013,2934.2,2933.8,1.93366]
[1769157665193,0.17063,2934.3,2933.8,1.5387]
[1769157665403,0.95912202,2934.2,2933.8,1.19239]
[1769157665594,0.17063,2934.3,2933.8,1.19239]
[1769157665794,0.9591743,2934.2,2933.8,1.19239]
[1769157665997,0.17063,2934.3,2933.8,1.19239]
[1769157666199,0.95917771,2934.2,2933.8,0.84414]
[1769157666399,0.17063,2934.3,2933.8,0.84414]
[1769157666601,0.95918231,2934.2,2933.8,0.4892]
[1769157666801,0.17063,2934.3,2933.8,0.05627]
[1769157666998,0.17063,2934.3,2932.9,9.761]
[1769157666999,1.30197439,2934.2,2932.9,9.8630977]
[1769157667200,0.17064,2934.0,2933.0,6.773]
[1769157671309,0.17064,2934.0,2933.1,3.84]
[1769157676418,0.17064,2934.0,2933.2,2.974]
[1769157676916,0.17064,2934.0,2933.1,3.84]
[1769157677113,0.17064,2934.0,2933.2,6.816]
[1769157683021,0.17064,2934.0,2933.2,2.976]
[1769157685115,3.64412147,2934.8,2933.2,2.976]
[1769157685320,0.17062,2934.4,2933.2,6.816]
[1769157685621,1.30232318,2934.3,2933.2,6.816]
[1769157685824,1.30232318,2934.2,2933.2,6.816]
[1769157686021,0.34273632,2934.1,2933.3,3.84]
[1769157686223,0.17062,2934.4,2933.3,3.84]
[1769157686424,1.302324,2934.3,2933.3,3.84]
[1769157686618,1.302324,2934.2,2933.3,3.84]
[1769157686818,0.34274084,2934.1,2933.3,3.84]
[1769157687020,0.17062,2934.3,2933.3,3.84]
[1769157687224,1.30230716,2934.2,2933.3,3.84]
[1769157687425,0.3427302,2934.1,2933.3,3.84]
[1769157687627,0.17062,2934.3,2933.3,3.84]
[1769157687925,1.30232895,2934.2,2933.3,3.84]
[1769157688127,0.17062,2934.3,2933.3,3.84]
[1769157688325,7.9,2934.9,2932.2,0.00397776]
[1769157688326,3.64412147,2934.1,2932.2,0.00397776]
[1769157688627,0.17067,2933.5,2932.3,3.01]
[1769157689021,0.17067,2933.5,2932.4,6.5250977]
[1769157689217,0.17065,2933.9,2932.5,3.5140977]
[1769157689421,1.30124788,2933.8,2932.6,0.00511849]
[1769157689621,1.30124788,2933.7,2932.6,0.00511849]
[1769157689919,1.47165799,2933.6,2932.6,3.01711849]
[1769157690121,0.17067,2933.6,2932.6,0.00511849]
[1769157692229,0.17067,2933.5,2932.6,0.00511849]
[1769157693221,0.17064,2934.1,2932.6,4.99758718]
[1769157693428,1.29979636,2934.0,2932.7,3.65132696]
[1769157693629,1.29979636,2933.9,2932.7,3.65132696]
[1769157693828,0.17064,2934.1,2932.7,3.65132696]
[1769157694024,1.29981346,2934.0,2932.7,3.65132696]
[1769157694229,0.17064,2934.1,2932.9,3.65132696]
[1769157696131,0.1706,2934.7,2933.2,3.65132696]
[1769157696332,0.9579793,2934.6,2933.3,3.84]
[1769157696531,0.17063,2934.2,2933.3,3.84]
[1769157700533,0.17063,2934.2,2933.4,3.84]
[1769157701640,0.1706,2934.8,2933.4,3.84]
[1769157701937,0.95759602,2934.7,2933.5,3.84]
[1769157702138,0.95759602,2934.6,2933.5,3.65132696]
[1769157702434,0.9574069,2934.5,2933.6,3.043]
[1769157702640,3.848239,2934.6,2933.5,3.044]
[1769157702841,1.12798663,2934.5,2933.5,3.044]
[1769157703135,0.95737663,2934.4,2933.5,3.044]
[1769157703839,0.17061,2934.5,2933.5,3.044]
[1769157704040,0.95724858,2934.4,2933.5,3.044]
[1769157704234,0.17061,2934.5,2933.5,3.044]
[1769157704934,0.17061,2934.5,2933.7,0.91017861]
[1769157705134,0.17061,2934.5,2934.0,0.91017861]
[1769157705342,3.677629,2935.0,2934.0,0.91017861]
[1769157705530,0.17062,2934.5,2934.0,0.91017861]
[1769157705735,3.677629,2935.0,2934.3,0.91017861]
[1769157705931,0.17062,2934.5,2934.3,0.91276327]
[1769157706237,6.08662376,2935.4,2934.3,0.91276327]
[1769157706238,0.17058,2935.1,2934.3,0.91276327]
[1769157706438,1.29613425,2935.0,2934.3,0.91276327]
[1769157706739,1.29613425,2934.9,2934.3,0.91276327]
[1769157706932,1.29613425,2934.8,2934.3,0.00258466]
[1769157707131,0.3392521,2934.7,2934.3,0.00258466]
[1769157707332,0.1706,2934.8,2934.3,0.00258466]
[1769157707540,1.2958536,2934.7,2934.3,0.00258466]
[1769157707834,3.848229,2934.8,2934.3,0.00258466]
[1769157708037,1.2958165,2934.7,2934.3,0.00258466]
[1769157708237,3.848229,2934.8,2934.3,0.00258466]
[1769157708536,4.30499476,2935.5,2933.5,3.84]
[1769157708537,0.17062,2934.3,2933.5,3.84]
[1769157708730,0.17062,2934.3,2933.2,3.053]
[1769157708934,0.17062,2934.3,2933.3,3.84]
[1769157709541,0.17359094,2934.3,2933.3,6.89739924]
[1769157709941,0.17359094,2934.3,2933.3,10.5487262]
[1769157711041,0.00297094,2934.3,2933.3,10.5487262]
[1769157711241,0.00511849,2934.8,2933.4,3.65132696]
[1769157711442,1.29516152,2934.7,2933.4,3.65132696]
[1769157711637,0.00511849,2934.8,2933.4,4.99126591]
[1769157711842,0.33907311,2934.7,2933.5,3.65132696]
[1769157712035,0.00511849,2934.8,2933.5,3.65132696]
[1769157712240,0.00511849,2934.8,2933.6,3.84]
[1769157713647,0.00511849,2934.8,2933.7,3.067]
[1769157716048,0.17570849,2934.8,2933.6,3.84]
[1769157716249,0.17570849,2934.8,2933.7,3.073]
[1769157716949,3.68274749,2934.8,2933.6,3.84]
[1769157718044,0.17061,2934.5,2933.6,3.84]
[1769157718243,0.00511849,2934.8,2933.7,3.84]
[1769157719848,0.00511849,2934.8,2933.7,7.49132696]
[1769157722153,0.00511849,2934.8,2933.7,3.84]
[1769157722453,0.17571849,2934.8,2933.7,3.84]
[1769157722950,3.66451571,2934.7,2933.7,3.84]
[1769157723149,0.17061,2934.5,2933.7,3.84]
[1769157723954,0.17061,2934.5,2933.5,3.84]
[1769157725856,0.17061,2934.5,2933.5,7.64122027]
[1769157727654,0.17061,2934.5,2933.6,3.108]
[1769157728351,0.17061,2934.5,2933.5,3.84]
[1769157728551,0.17061,2934.5,2933.6,3.11]
[1769157729958,0.17061,2934.5,2933.6,6.95]
[1769157730158,0.00511849,2934.8,2933.7,3.80122027]
[1769157732360,0.17571849,2934.8,2933.6,6.95]
[1769157732555,0.17571849,2934.8,2933.6,3.84]
[1769157732756,0.17571849,2934.8,2933.7,3.124]
[1769157732957,0.33985556,2934.7,2933.7,3.124]